bitfinex/quotes_BTCUSD_20220201
["timestamp","ask_amount","ask_price","bid_price","bid_amount"]
[1643741340652,1.044629,38793.0,38792.0,0.0011]
[1643741343992,1.25919958,38793.0,38792.0,0.0011]
[1643741344793,1.35919958,38793.0,38792.0,0.0011]
[1643741344992,1.144629,38793.0,38792.0,0.0011]
[1643741345195,1.044629,38793.0,38792.0,0.0011]
[1643741346393,1.044629,38793.0,38792.0,0.00103313]
[1643741346844,1.039629,38793.0,38792.0,0.00103313]
[1643741347445,0.400729,38793.0,38792.0,0.00103313]
[1643741349043,0.0515,38793.0,38792.0,0.00103313]
[1643741350047,0.400729,38793.0,38792.0,0.00103313]
[1643741350492,0.500729,38793.0,38792.0,0.00103313]
[1643741350698,1.25,38792.0,38790.0,0.0011]
[1643741350892,1.6005968,38791.0,38790.0,0.0011]
[1643741351092,0.7401769,38791.0,38790.0,0.0011]
[1643741351392,0.95402762,38791.0,38790.0,0.0011]
[1643741351591,1.10780667,38791.0,38790.0,0.0011]
[1643741351993,3.48528967,38791.0,38790.0,0.0011]
[1643741352194,2.12228967,38791.0,38790.0,0.0011]
[1643741352993,1.17228967,38791.0,38790.0,0.0011]
[1643741353490,0.90857115,38791.0,38790.0,0.0011]
[1643741353890,1.30857115,38791.0,38790.0,0.0011]
[1643741354138,0.90857115,38791.0,38790.0,0.0011]
[1643741354644,0.90857115,38791.0,38788.0,0.002]
[1643741354645,1.427486,38789.0,38783.0,0.0022]
[1643741354843,0.6439,38786.0,38783.0,0.0022]
[1643741355039,0.400729,38785.0,38783.0,0.0022]
[1643741355340,0.450729,38785.0,38783.0,0.00366234]
[1643741355540,1.13894643,38784.0,38783.0,0.00366234]
[1643741355742,1.53967543,38784.0,38783.0,0.00366234]
[1643741356441,1.53967543,38784.0,38783.0,0.0022]
[1643741356643,2.90267543,38784.0,38782.0,0.58117444]
[1643741356942,2.90267543,38784.0,38782.0,0.52616827]
[1643741356943,3.45754668,38783.0,38782.0,0.52616827]
[1643741357141,3.50904668,38783.0,38782.0,0.52616827]
[1643741357345,3.50904668,38783.0,38781.0,0.0041]
[1643741357346,1.15,38782.0,38780.0,0.0033]
[1643741357546,1.15,38782.0,38777.0,0.0022]
[1643741357547,0.64392726,38781.0,38777.0,0.0022]
[1643741357742,1.60106413,38780.0,38777.0,0.0022]
[1643741357993,2.00179313,38780.0,38777.0,0.0022]
[1643741358193,2.10179313,38780.0,38777.0,0.0022]
[1643741358593,0.73879313,38780.0,38777.0,0.0022]
[1643741358793,0.500729,38780.0,38777.0,0.0022]
[1643741358994,2.05395951,38780.0,38777.0,0.0022]
[1643741359193,0.69095951,38780.0,38777.0,0.0022]
[1643741360196,0.69095951,38780.0,38778.0,0.00476061]
[1643741360796,0.500729,38780.0,38778.0,0.00476061]
[1643741361196,0.500729,38780.0,38778.0,0.0033]
[1643741361396,0.69836015,38780.0,38778.0,0.00476061]
[1643741361645,0.500729,38780.0,38778.0,0.00476061]
[1643741362447,0.500729,38780.0,38778.0,0.0033]
[1643741362651,0.500729,38780.0,38778.0,0.00476061]
[1643741362846,0.69984504,38780.0,38778.0,0.00476061]
[1643741363648,0.500729,38780.0,38778.0,0.0033]
[1643741363848,0.500729,38780.0,38778.0,0.00476061]
[1643741364249,2.06167872,38780.0,38778.0,0.00476061]
[1643741364850,2.06167872,38780.0,38778.0,0.0033]
[1643741365048,0.69867872,38780.0,38778.0,0.00476061]
[1643741365694,1.4,38779.0,38777.0,0.0022]
[1643741365898,1.96296448,38778.0,38777.0,0.0022]
[1643741366094,3.113729,38778.0,38777.0,0.0022]
[1643741366296,3.213729,38778.0,38777.0,0.0022]
[1643741366798,2.84059987,38772.0,38771.0,0.011]
[1643741366996,3.163729,38772.0,38771.0,0.011]
[1643741367198,3.263729,38772.0,38771.0,0.011]
[1643741367799,3.328246,38772.0,38771.0,0.011]
[1643741367996,1.37586371,38771.0,38770.0,0.9982]
[1643741368196,3.18809271,38771.0,38770.0,0.9982]
[1643741368396,3.23959271,38771.0,38770.0,0.9982]
[1643741369649,1.25,38770.0,38769.0,0.28324639]
[1643741369850,1.25,38770.0,38763.0,0.00583386]
[1643741369851,0.064522,38768.0,38763.0,0.00583386]
[1643741370048,0.349229,38767.0,38763.0,0.00583386]
[1643741370249,1.712229,38767.0,38763.0,0.00583386]
[1643741370451,0.349229,38767.0,38763.0,0.00583386]
[1643741370848,0.349229,38767.0,38762.0,0.0031]
[1643741371050,0.349229,38767.0,38764.0,0.00498343]
[1643741371349,0.77830244,38765.0,38764.0,0.00265]
[1643741371548,0.50737777,38765.0,38764.0,0.00265]
[1643741372547,0.95967759,38765.0,38764.0,0.00265]
[1643741372749,0.50737777,38765.0,38764.0,0.00265]
[1643741373192,0.71108046,38765.0,38764.0,0.00265]
[1643741373394,0.50237777,38765.0,38764.0,0.00265]
[1643741373592,0.70469195,38765.0,38764.0,0.00265]
[1643741373791,0.50237777,38765.0,38764.0,0.00265]
[1643741375293,0.50231023,38765.0,38764.0,0.00265]
[1643741375794,0.349259,38765.0,38764.0,0.00265]
[1643741375993,0.13230962,38769.0,38764.0,0.00265]
[1643741375994,0.349259,38768.0,38764.0,0.00265]
[1643741376195,0.06452,38767.0,38764.0,0.00265]
[1643741376397,0.400759,38766.0,38764.0,0.00265]
[1643741378048,0.400759,38766.0,38762.0,0.04164185]
[1643741378049,0.5,38765.0,38762.0,0.04164185]
[1643741378245,0.16879619,38764.0,38762.0,0.00453463]
[1643741378648,0.00453463,38762.0,38755.0,0.13454742]
[1643741378848,1.05603463,38762.0,38755.0,0.01334742]
[1643741379056,1.40529363,38762.0,38755.0,0.01334742]
[1643741379255,1.59751363,38762.0,38755.0,0.01334742]
[1643741379454,1.59751363,38762.0,38753.0,0.30390734]
[1643741379455,2.24141363,38762.0,38753.0,0.30390734]
[1643741379649,0.6439,38755.0,38753.0,0.30390734]
[1643741379850,1.100759,38754.0,38753.0,0.30390734]
[1643741380506,1.2,38752.0,38739.0,0.0022]
[1643741380710,1.2,38752.0,38738.0,0.3811643]
[1643741380711,0.6439,38748.0,38738.0,0.3811643]
[1643741380902,0.25851113,38746.0,38738.0,0.0132643]
[1643741381103,0.400759,38745.0,38738.0,0.0132643]
[1643741381304,0.12308237,38741.0,38738.0,0.0132643]
[1643741381509,0.0515,38740.0,38738.0,0.0132643]
[1643741381905,0.04943838,38740.0,38738.0,0.01398673]
[1643741382110,0.6439,38753.0,38738.0,0.25936865]
[1643741382306,0.27264288,38752.0,38739.0,0.29893005]
[1643741382507,0.27264288,38752.0,38740.0,0.18079351]
[1643741383003,0.0515,38752.0,38744.0,1.40144461]
[1643741383211,0.0515,38752.0,38745.0,0.349259]
[1643741383403,0.0515,38757.0,38745.0,0.349259]
[1643741383605,0.22114288,38756.0,38744.0,1.94894461]
[1643741383804,0.22114288,38761.0,38745.0,0.1192]
[1643741384004,0.25097996,38760.0,38749.0,0.21078208]
[1643741384245,0.25097996,38760.0,38751.0,0.00144435]
[1643741384246,0.1219126,38758.0,38751.0,0.00144435]
[1643741384445,0.349259,38757.0,38751.0,0.00144435]
[1643741384650,0.60672326,38757.0,38751.0,0.00144435]
[1643741384848,0.65822326,38757.0,38751.0,0.00144435]
[1643741385047,0.1,38756.0,38751.0,0.00144435]
[1643741385247,0.6439,38753.0,38745.0,0.1192]
[1643741385445,0.65056829,38752.0,38746.0,0.00288906]
[1643741385645,0.75056829,38752.0,38746.0,0.0224527]
[1643741385849,0.65056829,38752.0,38746.0,0.0224527]
[1643741386050,0.0515,38752.0,38746.0,0.0224527]
[1643741386447,0.0515,38752.0,38746.0,0.01956364]
[1643741386647,0.20351651,38757.0,38749.0,0.23551975]
[1643741386849,0.349259,38756.0,38749.0,0.05]
[1643741387051,0.40551852,38755.0,38749.0,0.05]
[1643741387350,0.349259,38754.0,38749.0,0.05]
[1643741387649,0.20952145,38753.0,38749.0,0.05]
[1643741387899,0.26102145,38753.0,38750.0,0.00144441]
[1643741388094,0.349259,38752.0,38750.0,0.00144441]
[1643741388895,0.349259,38752.0,38749.0,0.05]
[1643741389097,0.349259,38752.0,38749.0,0.05144443]
[1643741389497,0.349259,38752.0,38749.0,0.2772977]
[1643741389796,0.349259,38752.0,38749.0,0.05144443]
[1643741389998,0.349259,38752.0,38749.0,0.05]
[1643741390196,0.349259,38752.0,38749.0,0.05144445]
[1643741391002,0.55285468,38752.0,38749.0,0.05144445]
[1643741391199,0.349259,38752.0,38749.0,0.05]
[1643741391399,0.349259,38752.0,38749.0,0.05144445]
[1643741391849,0.55371112,38752.0,38749.0,0.05144445]
[1643741392447,0.349259,38752.0,38749.0,0.05]
[1643741392647,0.349259,38752.0,38749.0,0.05144445]
[1643741393250,0.08850957,38755.0,38749.0,0.05144445]
[1643741393551,0.349259,38754.0,38749.0,0.05144445]
[1643741393750,0.399259,38754.0,38749.0,0.05]
[1643741393951,0.399259,38754.0,38750.0,0.00144439]
[1643741394151,0.399259,38754.0,38750.0,0.26270136]
[1643741394352,0.0515,38758.0,38750.0,0.26270136]
[1643741394553,0.00453463,38762.0,38750.0,0.26270136]
[1643741394951,0.00453463,38762.0,38750.0,0.26125697]
[1643741395155,0.09977655,38760.0,38754.0,0.00144424]
[1643741395409,0.00453463,38762.0,38756.0,0.29407913]
[1643741395602,0.21951362,38766.0,38757.0,0.9]
[1643741395800,0.22353482,38766.0,38760.0,0.05]
[1643741396204,0.1243,38769.0,38760.0,0.05]
[1643741396400,3.6475,38773.0,38766.0,0.25471171]
[1643741396401,3.2685,38773.0,38766.0,0.25471171]
[1643741396600,0.55426059,38772.0,38766.0,0.25471171]
[1643741396800,0.20520213,38771.0,38767.0,0.05]
[1643741397000,0.349259,38770.0,38767.0,0.05]
[1643741397301,0.13114056,38779.0,38767.0,0.05]
[1643741397302,0.1237,38779.0,38767.0,0.05]
[1643741397500,0.09432713,38773.0,38767.0,0.05]
[1643741399848,0.00144116,38772.0,38769.0,0.18025541]
[1643741400949,0.20653944,38777.0,38769.0,0.18025541]
[1643741401253,0.00144116,38772.0,38769.0,0.18025541]
[1643741401651,0.00144116,38772.0,38767.0,0.07172349]
[1643741402053,0.17520545,38775.0,38767.0,0.07172349]
[1643741402353,0.00144116,38771.0,38767.0,0.07172349]
[1643741402905,0.00144116,38771.0,38767.0,0.25631243]
[1643741403101,0.00144116,38771.0,38767.0,0.07172349]
[1643741403402,0.12351929,38772.0,38767.0,0.07172349]
[1643741403603,0.20357483,38771.0,38767.0,0.07172349]
[1643741403808,0.349259,38770.0,38767.0,0.07172349]
[1643741404201,0.20770605,38771.0,38767.0,0.07172349]
[1643741404402,0.349259,38770.0,38767.0,0.06672349]
[1643741404602,0.20616654,38769.0,38767.0,0.06672349]
[1643741404803,0.349259,38768.0,38767.0,0.06672349]
[1643741405002,0.349259,38770.0,38767.0,0.06672349]
[1643741405203,0.30677153,38769.0,38767.0,0.06672349]
[1643741405503,0.56336285,38768.0,38767.0,0.06672349]
[1643741405804,0.57675594,38768.0,38767.0,0.02172349]
[1643741406002,0.57675594,38768.0,38764.0,0.05]
[1643741406201,0.62675594,38768.0,38764.0,0.05]
[1643741406651,0.399259,38768.0,38764.0,0.05]
[1643741407050,0.10964811,38766.0,38764.0,0.05]
[1643741407251,0.15964811,38766.0,38764.0,0.05]
[1643741408053,0.349259,38765.0,38764.0,0.05]
[1643741408652,0.1015,38766.0,38764.0,0.05]
[1643741409056,0.3,38764.0,38760.0,0.11996745]
[1643741409252,0.3,38764.0,38761.0,0.05]
[1643741409253,0.35,38764.0,38761.0,0.05]
[1643741409753,0.3,38764.0,38761.0,0.05]
[1643741410598,0.25837821,38766.0,38761.0,0.05]
[1643741410599,0.0515,38766.0,38761.0,0.05]
[1643741411200,0.1,38768.0,38763.0,0.10766525]
[1643741411606,0.02573,38786.0,38767.0,0.13279917]
[1643741411801,0.02573,38786.0,38770.0,0.21210572]
[1643741411802,0.27078371,38779.0,38770.0,0.21210572]
[1643741412001,1.65179095,38784.0,38772.0,0.05]
[1643741412203,0.349259,38777.0,38772.0,0.05]
[1643741412403,0.09738725,38779.0,38772.0,0.05]
[1643741412801,0.1,38777.0,38772.0,0.05]
[1643741413201,0.1014416,38777.0,38772.0,0.05]
[1643741413604,0.349259,38776.0,38772.0,0.05]
[1643741414003,0.1514416,38777.0,38772.0,0.05]
[1643741414253,0.0014416,38776.0,38772.0,0.05]
[1643741415250,0.1,38777.0,38772.0,0.05]
[1643741415651,0.0014416,38776.0,38772.0,0.05]
[1643741416552,0.05,38777.0,38772.0,0.15122909]
[1643741416755,0.0014416,38776.0,38772.0,0.15122909]
[1643741417352,0.0014416,38776.0,38773.0,0.08842269]
[1643741417556,0.0014416,38776.0,38774.0,0.21771988]
[1643741417752,0.2220514,38789.0,38774.0,0.21771988]
[1643741418003,0.0014416,38776.0,38773.0,0.08842269]
[1643741418603,0.0014416,38776.0,38773.0,0.22396088]
[1643741420103,0.21497285,38783.0,38773.0,0.22396088]
[1643741420304,0.0014416,38776.0,38773.0,0.22396088]
[1643741420703,0.0014416,38776.0,38774.0,0.21541685]
[1643741420903,0.0014416,38776.0,38773.0,0.22396088]
[1643741421305,0.1127,38786.0,38773.0,0.22396088]
[1643741421505,0.0014416,38776.0,38773.0,0.08842269]
[1643741421748,0.0014416,38776.0,38772.0,0.15122909]
[1643741422459,0.12537527,38779.0,38772.0,0.15122909]
[1643741422849,0.0014416,38776.0,38772.0,0.15122909]
[1643741423250,0.0014416,38776.0,38772.0,0.05]
[1643741423648,0.42,38778.0,38772.0,0.05]
[1643741424049,0.00130205,38776.0,38772.0,0.05]
[1643741424551,0.00130205,38776.0,38772.0,0.16398669]
[1643741424950,0.62443119,38778.0,38772.0,0.16398669]
[1643741425150,0.00130205,38776.0,38772.0,0.16398669]
[1643741426200,0.42,38778.0,38772.0,0.16398669]
[1643741426801,0.55149343,38777.0,38772.0,0.05]
[1643741427005,1.363,38776.0,38772.0,0.05]
[1643741427308,1.363,38776.0,38764.0,0.3873]
[1643741427309,1.363,38774.0,38764.0,0.3873]
[1643741427502,1.363,38772.0,38766.0,0.05]
[1643741427702,0.64992595,38771.0,38766.0,0.05]
[1643741427903,0.64992595,38771.0,38769.0,0.01944544]
[1643741428106,1.13243995,38770.0,38769.0,0.01944544]
[1643741428303,1.53319895,38770.0,38769.0,0.01944544]
[1643741428706,1.300759,38770.0,38766.0,0.05]
[1643741428903,0.349259,38769.0,38766.0,0.05]
[1643741429158,0.0515,38768.0,38766.0,0.05]
[1643741429358,0.349259,38767.0,38766.0,0.05]
[1643741429557,0.400759,38767.0,38766.0,0.05]
[1643741429962,0.0515,38767.0,38766.0,0.05]
[1643741430258,0.0515,38767.0,38766.0,0.04988946]
[1643741434908,0.62903575,38767.0,38766.0,0.04988946]
[1643741435310,0.72903575,38767.0,38766.0,0.04988946]
[1643741436107,0.62903575,38767.0,38766.0,0.04988946]
[1643741436309,0.51566847,38767.0,38766.0,0.04988946]
[1643741436508,0.61566847,38767.0,38766.0,0.04988946]
[1643741436752,2.20092636,38767.0,38766.0,0.04988946]
[1643741438156,1.97866847,38767.0,38766.0,0.04988946]
[1643741439352,1.97866847,38767.0,38766.0,0.03988946]
[1643741439956,1.97866847,38767.0,38761.0,0.05]
[1643741439957,0.064525,38765.0,38761.0,0.05]
[1643741440156,0.400759,38764.0,38761.0,0.05]
[1643741440417,1.363,38762.0,38760.0,0.00144147]
[1643741440617,1.750759,38761.0,38751.0,0.05]
[1643741440815,3.857659,38761.0,38760.0,0.00144139]
[1643741441013,4.33184897,38761.0,38760.0,0.00144139]
[1643741441415,4.39638797,38761.0,38760.0,0.00144139]
[1643741441815,4.39638797,38761.0,38751.0,0.05]
[1643741442018,1.363,38758.0,38751.0,0.05]
[1643741442219,0.09201597,38755.0,38751.0,0.05]
[1643741442419,2.39116731,38754.0,38751.0,0.05]
[1643741442622,2.49860787,38754.0,38746.0,0.0011]
[1643741442818,0.6439,38752.0,38746.0,0.0011]
[1643741443015,1.4439,38747.0,38746.0,0.0011]
[1643741443220,1.944659,38747.0,38746.0,0.0011]
[1643741443718,1.044659,38747.0,38746.0,0.0011]
[1643741445056,1.094659,38747.0,38746.0,0.0011]
[1643741445254,1.094659,38747.0,38739.0,0.0003]
[1643741445255,0.45,38746.0,38739.0,0.0003]
[1643741445459,0.09237981,38744.0,38740.0,0.28944397]
[1643741445655,0.0515,38743.0,38739.0,0.0003]
[1643741445859,0.0515,38743.0,38741.0,0.02026822]
[1643741446257,0.0515,38743.0,38739.0,0.0003]
[1643741446461,0.349259,38742.0,38739.0,0.0003]
[1643741446659,0.400759,38742.0,38739.0,0.0003]
[1643741446858,0.400759,38742.0,38739.0,0.00171595]
[1643741447757,0.6196221,38742.0,38739.0,0.00171595]
[1643741448005,0.400759,38742.0,38739.0,0.00171597]
[1643741448599,0.22868027,38741.0,38739.0,0.00171597]
[1643741448899,0.400759,38740.0,38739.0,0.00171597]
[1643741449097,0.400759,38740.0,38739.0,0.0003]
[1643741449700,0.67835205,38740.0,38739.0,0.0003]
[1643741450104,0.400759,38740.0,38739.0,0.0003]
[1643741451502,0.0515,38740.0,38739.0,0.0003]
[1643741452352,0.26417463,38740.0,38739.0,0.0003]
[1643741452553,0.26417463,38740.0,38728.0,0.0031]
[1643741452554,1.4,38737.0,38728.0,0.0031]
[1643741452758,0.61343363,38740.0,38726.0,0.117]
[1643741452759,1.363,38734.0,38726.0,0.0011]
[1643741452954,1.363,38734.0,38732.0,0.00566488]
[1643741452955,1.82336294,38733.0,38732.0,0.00566488]
[1643741453153,3.33219822,38733.0,38732.0,0.00566488]
[1643741453355,3.52673342,38733.0,38732.0,0.00566488]
[1643741453557,3.52673342,38733.0,38724.0,0.0022]
[1643741453558,0.09576733,38725.0,38724.0,0.0022]
[1643741453755,0.349259,38725.0,38721.0,0.36312925]
[1643741453955,0.0515,38725.0,38721.0,0.36312925]
[1643741454256,0.349259,38724.0,38721.0,0.36312925]
[1643741454453,0.0515,38723.0,38721.0,0.36312925]
[1643741454657,0.0515,38722.0,38721.0,0.62397699]
[1643741455057,0.0515,38722.0,38721.0,0.36312925]
[1643741457700,0.0515,38722.0,38721.0,0.96312925]
[1643741457898,0.0515,38722.0,38721.0,0.36312925]
[1643741458301,0.04278444,38722.0,38721.0,1.31312925]
[1643741459172,0.05292553,38734.0,38721.0,1.76238825]
[1643741459373,0.05292553,38734.0,38727.0,0.23655319]
[1643741459972,0.0529257,38734.0,38729.0,0.00138093]
[1643741460172,0.0014257,38734.0,38729.0,0.00138093]
[1643741460971,0.116065,38739.0,38727.0,0.23655319]
[1643741461177,0.00142572,38734.0,38730.0,0.00138089]
[1643741462276,0.31325071,38738.0,38727.0,0.31719421]
[1643741462475,0.00142573,38734.0,38730.0,0.00138088]
[1643741463501,0.20689907,38737.0,38727.0,0.23625319]
[1643741463702,0.00142573,38734.0,38730.0,0.00138088]
[1643741464201,0.00142573,38734.0,38730.0,0.11078072]
[1643741464404,0.00142573,38734.0,38730.0,0.21078072]
[1643741464604,1.45120536,38742.0,38731.0,0.67645664]
[1643741464802,1.45120536,38742.0,38731.0,0.72645664]
[1643741465001,1.45120536,38742.0,38732.0,1.4]
[1643741465205,1.45120536,38742.0,38738.0,0.13327817]
[1643741465602,1.45120536,38742.0,38741.0,0.0963702]
[1643741466001,1.45120536,38742.0,38741.0,0.1463702]
[1643741466002,1.40680536,38742.0,38741.0,0.1463702]
[1643741466203,1.40680536,38742.0,38741.0,0.0963702]
[1643741466658,1.40680536,38742.0,38741.0,0.22295979]
[1643741466859,1.40680536,38742.0,38736.0,0.12906774]
[1643741467159,1.40680536,38742.0,38735.0,0.81502174]
[1643741467359,1.40680536,38742.0,38737.0,0.21502359]
[1643741467560,1.40680536,38742.0,38737.0,0.26502359]
[1643741467760,1.40680536,38742.0,38741.0,0.29646343]
[1643741467959,1.40680536,38742.0,38741.0,0.56538083]
[1643741468160,1.40680536,38742.0,38738.0,0.23424859]
[1643741468360,1.40680536,38742.0,38737.0,0.114538]
[1643741468661,1.40680536,38742.0,38737.0,0.064538]
[1643741468863,1.40680536,38742.0,38737.0,0.114538]
[1643741469061,1.40680536,38742.0,38737.0,0.17907834]
[1643741469262,1.40680536,38742.0,38741.0,0.22550802]
[1643741469662,0.00142752,38741.0,38740.0,0.09533716]
[1643741470605,1.40680536,38742.0,38740.0,1.37788264]
[1643741470804,1.40823286,38742.0,38740.0,1.37788264]
[1643741471407,1.40823286,38742.0,38741.0,1.61409499]
[1643741471809,1.40680536,38742.0,38741.0,1.4]
[1643741472009,1.40680536,38742.0,38741.0,1.799259]
[1643741473309,0.00142748,38743.0,38741.0,1.799259]
[1643741473509,0.00142748,38743.0,38742.0,2.03232058]
[1643741473709,0.54995798,38755.0,38746.0,0.06452535]
[1643741473910,0.54995798,38755.0,38747.0,0.25973614]
[1643741474354,0.54099727,38755.0,38754.0,0.23539294]
[1643741474558,0.00147142,38754.0,38753.0,0.11837376]
[1643741474855,0.27055647,38763.0,38753.0,0.46763276]
[1643741475055,0.27055647,38763.0,38753.0,0.11837376]
[1643741475456,0.38099881,38769.0,38756.0,0.21022306]
[1643741475656,0.349259,38768.0,38756.0,0.21022306]
[1643741476053,0.1,38767.0,38756.0,0.21022306]
[1643741476455,0.26678163,38764.0,38756.0,0.21022306]
[1643741476666,0.26678163,38764.0,38753.0,0.56443282]
[1643741476667,0.349259,38763.0,38753.0,0.1235]
[1643741476860,0.349259,38763.0,38747.0,0.179031]
[1643741476861,0.1,38762.0,38747.0,0.05]
[1643741477057,0.400759,38761.0,38745.0,0.22673956]
[1643741477257,0.1,38760.0,38745.0,0.22673956]
[1643741477456,0.400759,38759.0,38745.0,0.22673956]
[1643741477656,0.24961613,38752.0,38745.0,0.21184053]
[1643741477909,0.24961613,38752.0,38743.0,0.1235]
[1643741478103,0.24961613,38752.0,38750.0,0.02030472]
[1643741478302,0.999259,38751.0,38750.0,0.02030472]
[1643741478502,1.050759,38751.0,38750.0,0.02030472]
[1643741478903,1.050759,38751.0,38742.0,0.3695]
[1643741479108,1.050759,38751.0,38734.0,0.42]
[1643741479109,0.08659881,38746.0,38734.0,0.42]
[1643741479308,0.400759,38745.0,38737.0,0.00140191]
[1643741479505,0.00744056,38751.0,38737.0,0.00140191]
[1643741479506,0.24319646,38751.0,38745.0,0.01932139]
[1643741479705,0.10936661,38749.0,38745.0,0.01932139]
[1643741479904,0.400759,38748.0,38745.0,0.01932139]
[1643741480104,1.01029173,38746.0,38745.0,0.01932139]
[1643741480302,0.61105073,38746.0,38736.0,0.21204474]
[1643741480503,0.0515,38746.0,38737.0,0.0013949]
[1643741481104,0.0515,38746.0,38741.0,0.09393952]
[1643741481665,0.0515,38746.0,38737.0,0.0013949]
[1643741481666,0.064556,38744.0,38737.0,0.0013949]
[1643741481968,0.66210814,38743.0,38737.0,0.0013949]
[1643741482264,0.1,38742.0,38737.0,0.0013949]
[1643741482463,0.400759,38741.0,38737.0,0.0013949]
[1643741482663,0.2575494,38738.0,38732.0,0.01824886]
[1643741482865,0.2575494,38738.0,38737.0,0.0013949]
[1643741483064,0.6583084,38738.0,38737.0,0.0013949]
[1643741483262,0.400759,38738.0,38737.0,0.0013949]
[1643741483863,0.400759,38738.0,38732.0,0.01824886]
[1643741484065,0.0515,38738.0,38736.0,0.00140194]
[1643741484265,0.0515,38738.0,38737.0,0.09437521]
[1643741484868,0.0515,38738.0,38736.0,0.00140194]
[1643741485067,0.0515,38738.0,38736.0,1.03242895]
[1643741485270,0.0515,38738.0,38736.0,1.01383089]
[1643741485513,0.35,38737.0,38736.0,1.01383089]
[1643741485711,0.962648,38737.0,38736.0,1.01383089]
[1643741486013,0.750759,38737.0,38736.0,1.01383089]
[1643741486211,0.750759,38737.0,38736.0,1.01242895]
[1643741486412,0.400759,38737.0,38736.0,1.01242895]
[1643741486814,0.31433516,38737.0,38736.0,1.01242895]
[1643741487017,1.05823516,38737.0,38736.0,1.01242895]
[1643741487216,1.40749416,38737.0,38736.0,1.01242895]
[1643741487414,2.77049416,38737.0,38736.0,1.01242895]
[1643741490464,1.40749416,38737.0,38736.0,1.01242895]
[1643741491967,1.144659,38737.0,38736.0,1.01242895]
[1643741492666,1.044659,38737.0,38736.0,1.01242895]
[1643741492921,1.044659,38737.0,38736.0,1.11004961]
[1643741492922,0.0515,38737.0,38736.0,1.11004961]
[1643741494310,0.3515,38737.0,38736.0,1.11004961]
[1643741494915,0.0515,38737.0,38736.0,1.01242895]
[1643741495911,0.0515,38737.0,38733.0,0.31105643]
[1643741496114,0.27164205,38745.0,38735.0,0.00140198]
[1643741496312,0.0515,38743.0,38737.0,0.2217713]
[1643741496512,0.349259,38742.0,38737.0,0.2217713]
[1643741496757,0.399259,38742.0,38735.0,0.00140198]
[1643741497156,0.349259,38742.0,38733.0,0.18618857]
[1643741497358,0.67249854,38742.0,38737.0,0.00140191]
[1643741497661,0.2015,38741.0,38737.0,0.00140191]
[1643741497858,0.349259,38740.0,38737.0,0.00140191]
[1643741498060,0.0515,38739.0,38737.0,0.00140191]
[1643741498258,0.849259,38738.0,38723.0,0.89983]
[1643741498457,0.849259,38738.0,38737.0,0.00140191]
[1643741498458,0.72580818,38738.0,38737.0,0.00140191]
[1643741498657,0.900759,38738.0,38737.0,0.00140191]
[1643741498858,0.00140191,38736.0,38731.0,0.00560846]
[1643741499259,0.349259,38735.0,38731.0,0.00560846]
[1643741499463,0.349259,38735.0,38732.0,0.01981238]
[1643741499858,0.349259,38735.0,38729.0,0.28804512]
[1643741500522,0.00140191,38736.0,38729.0,0.38804512]
[1643741500722,0.00140191,38736.0,38730.0,0.1]
[1643741501220,0.00140191,38736.0,38735.0,0.10804266]
[1643741502722,0.00140191,38736.0,38734.0,0.00069925]
[1643741503121,0.00140191,38736.0,38731.0,0.14426464]
[1643741503321,0.00140191,38736.0,38733.0,0.00139502]
[1643741503522,0.00140191,38736.0,38733.0,0.10245201]
[1643741503722,0.00140191,38736.0,38735.0,0.23722944]
[1643741504457,0.00140191,38736.0,38734.0,0.001395]
[1643741505460,0.00140191,38736.0,38731.0,0.29407384]
[1643741505661,0.00140191,38736.0,38733.0,0.00139502]
[1643741506058,0.00140191,38736.0,38730.0,0.36969211]
[1643741506059,8.70453114,38731.0,38730.0,0.36969211]
[1643741506258,7.97864198,38731.0,38730.0,1.41969211]
[1643741506660,7.97864198,38731.0,38730.0,1.71344342]
[1643741506860,7.97864198,38731.0,38730.0,1.69375131]
[1643741507060,7.97864198,38731.0,38730.0,0.74346521]
[1643741508105,7.97864198,38731.0,38730.0,1.79346521]
[1643741508303,7.97864198,38731.0,38730.0,1.4]
[1643741508505,7.97864198,38731.0,38730.0,0.35]
[1643741509103,7.97864198,38731.0,38730.0,1.3]
[1643741509305,7.97864198,38731.0,38730.0,1.67914225]
[1643741509604,7.97864198,38731.0,38730.0,1.7887132]
[1643741510807,7.97864198,38731.0,38730.0,1.40957095]
[1643741511755,7.97864198,38731.0,38730.0,1.60957095]
[1643741511955,7.97864198,38731.0,38730.0,1.85287468]
[1643741512556,7.97864198,38731.0,38730.0,1.40957095]
[1643741513259,7.97864198,38731.0,38730.0,0.55957095]
[1643741513657,7.97864198,38731.0,38730.0,0.84031775]
[1643741514057,7.97864198,38731.0,38730.0,1.89031775]
[1643741514759,7.97864198,38731.0,38730.0,0.65957095]
[1643741514959,7.97864198,38731.0,38730.0,0.4]
[1643741515413,7.97864198,38731.0,38730.0,0.35]
[1643741516007,7.97864198,38731.0,38730.0,0.95]
[1643741518511,7.97864198,38731.0,38730.0,0.35]
[1643741518915,6.94106177,38727.0,38726.0,0.258208]
[1643741519357,6.94106177,38727.0,38726.0,0.98922897]
[1643741519557,6.94106177,38727.0,38726.0,0.758208]
[1643741519757,6.94106177,38727.0,38726.0,0.608208]
[1643741520159,6.94106177,38727.0,38726.0,0.479109]
[1643741520763,6.94106177,38727.0,38726.0,0.95467078]
[1643741520964,6.94106177,38727.0,38726.0,1.78497894]
[1643741521161,6.94106177,38727.0,38726.0,1.30867616]
[1643741521561,6.94106177,38727.0,38726.0,0.95941716]
[1643741521963,6.94106177,38727.0,38726.0,0.329109]
[1643741522165,6.94106177,38727.0,38726.0,0.15]
[1643741522365,6.94106177,38727.0,38726.0,0.33747376]
[1643741522567,6.94106177,38727.0,38726.0,0.67494752]
[1643741522767,6.94106177,38727.0,38725.0,0.00138141]
[1643741523512,6.94106177,38727.0,38724.0,0.32638848]
[1643741523706,6.94106177,38727.0,38724.0,0.37776991]
[1643741524707,6.94106177,38727.0,38724.0,0.37638848]
[1643741524911,6.94106177,38727.0,38724.0,0.37776993]
[1643741525509,6.94085161,38727.0,38724.0,0.37776993]
[1643741525709,6.94085161,38727.0,38725.0,0.1]
[1643741526308,6.21489698,38727.0,38725.0,0.1]
[1643741526766,6.21489698,38727.0,38726.0,1.63750991]